bitfinex-derivatives/quotes_BTCF0:USTF0_20250308
["timestamp","ask_amount","ask_price","bid_price","bid_amount"]
[1741455105727,0.007,86057.0,86056.0,0.32921993]
[1741455106435,0.007,86057.0,86056.0,0.30027274]
[1741455106637,0.007,86057.0,86056.0,0.3366165]
[1741455106831,0.407275,86092.0,86056.0,0.27467612]
[1741455107133,0.0929606,86082.0,86081.0,0.0464805]
[1741455107640,0.0852,86087.0,86081.0,0.0464805]
[1741455107835,0.0929606,86082.0,86081.0,0.0464805]
[1741455108136,0.0852,86087.0,86078.0,0.14058977]
[1741455108338,0.1764622,86081.0,86080.0,0.0929623]
[1741455108533,0.0835,86081.0,86080.0,0.0929623]
[1741455108730,0.1764617,86081.0,86080.0,0.0929623]
[1741455109127,0.0835,86081.0,86080.0,0.0929623]
[1741455109641,0.1764624,86081.0,86080.0,0.0929623]
[1741455110132,0.0835,86081.0,86080.0,0.0929623]
[1741455110440,0.0835,86081.0,86080.0,0.12445175]
[1741455110933,0.07684606,86081.0,86080.0,0.12445175]
[1741455111533,0.07684606,86081.0,86080.0,0.12545175]
[1741455111534,0.08084606,86081.0,86080.0,0.12545175]
[1741455111729,0.08084606,86081.0,86080.0,0.12645175]
[1741455111941,0.08684606,86081.0,86080.0,0.12645175]
[1741455112431,0.08684606,86081.0,86080.0,0.03348945]
[1741455112832,0.08684606,86081.0,86080.0,0.12645175]
[1741455113531,0.08284606,86081.0,86080.0,0.12545175]
[1741455113743,0.08784606,86081.0,86080.0,0.12645175]
[1741455114838,0.08784606,86081.0,86080.0,0.03348945]
[1741455115033,0.18080776,86081.0,86080.0,0.03348945]
[1741455115230,0.17480776,86081.0,86080.0,0.12545225]
[1741455115441,0.17980776,86081.0,86080.0,0.06842809]
[1741455115632,0.26080776,86081.0,86080.0,0.06842809]
[1741455115835,0.26080776,86081.0,86080.0,0.001]
[1741455116032,0.26080776,86081.0,86080.0,0.0939628]
[1741455116232,0.26080776,86081.0,86080.0,0.03256494]
[1741455116637,0.26080776,86081.0,86080.0,0.001]
[1741455118636,0.16784606,86081.0,86069.0,0.03083999]
[1741455118940,0.0929777,86067.0,86066.0,0.0929778]
[1741455119333,0.2567747,86069.0,86068.0,0.0929757]
[1741455119536,0.1638,86069.0,86068.0,0.0929757]
[1741455119848,0.1638,86069.0,86066.0,0.03217388]
[1741455119849,0.0929768,86067.0,86066.0,0.03217388]
[1741455120038,0.0929811,86063.0,86060.0,0.00017433]
[1741455120337,0.0929811,86063.0,86062.0,0.03332194]
[1741455120735,0.0929811,86063.0,86062.0,0.00174265]
[1741455121232,0.0929811,86063.0,86060.0,0.00017433]
[1741455121233,0.0929833,86061.0,86060.0,0.00017433]
[1741455121636,0.0464936,86058.0,86055.0,0.06630949]
[1741455121836,0.4537889,86056.0,86052.0,0.78228]
[1741455122040,0.084,86057.0,86056.0,0.0929887]
[1741455122239,0.0929823,86063.0,86062.0,0.0929801]
[1741455122847,0.0464898,86065.0,86060.0,0.0464919]
[1741455123046,0.0929818,86063.0,86062.0,0.0929818]
[1741455123244,0.0818,86068.0,86067.0,0.0929768]
[1741455123446,0.001,86063.0,86062.0,0.0929822]
[1741455124141,0.0833,86069.0,86068.0,0.0929757]
[1741455124542,0.0833,86069.0,86060.0,0.4082918]
[1741455124742,0.0929784,86066.0,86063.0,0.0464905]
[1741455124943,0.1297875,86069.0,86062.0,0.002]
[1741455124944,0.0833,86069.0,86062.0,0.002]
[1741455125144,0.0929796,86065.0,86063.0,0.0929803]
[1741455125348,0.0919796,86065.0,86063.0,0.0929803]
[1741455125551,0.0919796,86065.0,86064.0,0.0929801]
[1741455125745,0.1762752,86069.0,86068.0,0.0929757]
[1741455125946,0.0929757,86068.0,86067.0,0.0929768]
[1741455127249,0.092979,86066.0,86065.0,0.0929783]
[1741455127546,0.0929801,86064.0,86063.0,0.002]
[1741455127746,0.0929833,86061.0,86060.0,0.30477584]
[1741455127940,0.0919833,86061.0,86060.0,0.30477584]
[1741455128243,0.0919433,86061.0,86060.0,0.30477584]
[1741455128438,0.0909433,86061.0,86060.0,0.30477584]
[1741455128642,0.0929887,86056.0,86054.0,0.30122881]
[1741455128836,0.0929898,86055.0,86054.0,0.30201871]
[1741455129043,0.00072,86067.0,86066.0,0.0929779]
[1741455129244,0.00072,86067.0,86063.0,0.004]
[1741455129245,0.01843681,86079.0,86076.0,0.0929671]
[1741455129452,0.01843681,86079.0,86076.0,0.4537671]
[1741455129646,0.3608,86092.0,86076.0,0.4537671]
[1741455129951,0.4537501,86092.0,86076.0,0.4537671]
[1741455130445,0.3608,86092.0,86076.0,0.4537671]
[1741455130640,0.3608,86092.0,86091.0,0.0929509]
[1741455130838,0.3608,86092.0,86084.0,0.0464791]
[1741455131039,0.0929538,86089.0,86087.0,0.092955]
[1741455131250,0.0929538,86089.0,86088.0,0.0929541]
[1741455131444,0.0464754,86091.0,86087.0,0.092955]
[1741455131657,0.3608,86092.0,86083.0,0.3608]
[1741455131948,0.0929617,86081.0,86080.0,0.00017433]
[1741455132153,0.4527617,86081.0,86080.0,0.00017433]
[1741455133750,0.0929747,86069.0,86068.0,0.03495084]
[1741455133956,0.0929747,86069.0,86068.0,0.0929752]
[1741455134857,0.0959747,86069.0,86068.0,0.0929752]
[1741455135354,0.003,86069.0,86068.0,0.0929752]
[1741455136050,0.0891,86069.0,86068.0,0.0929752]
[1741455136849,0.0871,86069.0,86068.0,0.0929752]
[1741455137957,0.0861,86069.0,86068.0,0.0939752]
[1741455138264,0.0871,86069.0,86068.0,0.0939752]
[1741455138952,0.001,86069.0,86068.0,0.0949752]
[1741455139148,0.001,86069.0,86068.0,0.1753752]
[1741455139762,0.0795,86075.0,86074.0,0.0929693]
[1741455139953,0.0795,86075.0,86072.0,0.0464854]
[1741455140155,0.0832,86074.0,86073.0,0.1733703]
[1741455141655,0.0852,86074.0,86073.0,0.1733703]
[1741455142454,0.0852,86074.0,86073.0,0.2543703]
[1741455142959,0.0852,86074.0,86073.0,0.1739703]
[1741455143858,0.05064773,86074.0,86073.0,0.2560703]
[1741455144059,0.05064773,86074.0,86073.0,0.3398703]
[1741455144856,0.05060773,86074.0,86073.0,0.3398703]
[1741455145460,0.002,86074.0,86073.0,0.3398703]
[1741455145869,0.002,86074.0,86073.0,0.28184614]
[1741455146060,0.002,86074.0,86073.0,0.2469]
[1741455146762,0.002,86074.0,86073.0,0.3398703]
[1741455148563,0.0858,86074.0,86073.0,0.3398703]
[1741455148966,0.0858,86074.0,86073.0,0.28191944]
[1741455151761,0.0858,86074.0,86073.0,0.19811944]
[1741455151962,0.0929757,86068.0,86067.0,0.30284914]
[1741455152168,0.0929768,86067.0,86060.0,0.57046881]
[1741455152366,0.1732768,86067.0,86060.0,0.57046881]
[1741455153059,0.0929833,86061.0,86060.0,0.57046881]
[1741455153262,0.0929833,86061.0,86060.0,0.56982881]
[1741455153459,0.0929833,86061.0,86060.0,0.07575448]
[1741455153669,0.4537833,86061.0,86060.0,0.07575448]
[1741455154265,0.4537833,86061.0,86060.0,0.07775448]
[1741455154564,0.0929919,86053.0,86052.0,0.78249433]
[1741455154764,0.0930071,86039.0,86038.0,0.07575448]
[1741455155065,0.4538071,86039.0,86038.0,0.01780362]
[1741455155271,0.4538071,86039.0,86038.0,0.11081182]
[1741455155765,0.4528071,86039.0,86038.0,0.04895011]
[1741455155966,0.4498071,86039.0,86038.0,0.04895011]
[1741455156979,0.3608,86039.0,86038.0,0.14195831]
[1741455157273,0.4538071,86039.0,86038.0,0.04895011]
[1741455157680,0.4538071,86039.0,86038.0,0.03114649]
[1741455157879,0.5392071,86039.0,86036.0,0.0883]
[1741455158178,0.5392071,86039.0,86036.0,0.03034914]
[1741455158179,0.0890092,86037.0,86036.0,0.03034914]
[1741455158381,0.0825,86038.0,86036.0,0.03034914]
[1741455158780,0.0825,86038.0,86037.0,0.0861]
[1741455158781,0.1755082,86038.0,86037.0,0.0861]
[1741455158979,0.0825,86038.0,86037.0,0.1791092]
[1741455159179,0.0825,86038.0,86037.0,0.0861]
[1741455159573,0.1685082,86038.0,86037.0,0.0861]
[1741455160469,0.0755,86038.0,86037.0,0.0861]
[1741455160683,0.1685082,86038.0,86037.0,0.0861]
[1741455161186,0.1685082,86038.0,86037.0,0.11084914]
[1741455161480,0.1695082,86038.0,86037.0,0.20485834]
[1741455161686,0.1695082,86038.0,86037.0,0.11184914]
[1741455162268,0.5313082,86038.0,86037.0,0.005]
[1741455162884,0.0930157,86031.0,86030.0,0.0001162]
[1741455163176,0.093019,86028.0,86027.0,0.03962104]
[1741455163382,0.0930244,86023.0,86022.0,0.78212]
[1741455163572,0.0930309,86017.0,86014.0,0.04005765]
[1741455163779,0.4538309,86017.0,86000.0,0.14058977]
[1741455163980,0.4538309,86017.0,86002.0,0.093046]
[1741455164175,0.0930454,86004.0,86000.0,0.0863]
[1741455164383,0.3608,86017.0,86000.0,0.2653544]
[1741455164574,0.0930428,86006.0,86005.0,0.0930419]
[1741455165076,0.0930428,86006.0,86003.0,0.0465227]
[1741455165077,0.4073204,86008.0,86007.0,0.0930417]
[1741455165377,0.0930453,86004.0,86003.0,0.0930453]
[1741455165578,0.36156,86008.0,86006.0,0.0930417]
[1741455165784,0.4538408,86008.0,86007.0,0.0930417]
[1741455165976,0.4538408,86008.0,86006.0,0.0930417]
[1741455166173,0.4548408,86008.0,86006.0,0.0930417]
[1741455166378,0.0881,86007.0,86006.0,0.0930428]
[1741455167677,0.0881,86007.0,86001.0,0.1307239]
[1741455167878,0.0881,86007.0,86001.0,0.0842]
[1741455168079,0.0881,86007.0,86003.0,0.0930454]
[1741455168277,0.0881,86007.0,86003.0,0.0465224]
[1741455168479,0.0881,86007.0,86001.0,0.0842]
[1741455168480,0.0881,86007.0,86006.0,0.0930428]
[1741455168786,0.001,86007.0,86006.0,0.0930428]
[1741455169494,0.047521,86007.0,86004.0,0.0801]
[1741455169686,0.0866,86006.0,86004.0,0.0801]
[1741455169875,0.0866,86006.0,86001.0,0.09224]
[1741455170074,0.0866,86006.0,86005.0,0.0930438]
[1741455170477,0.0930471,86002.0,86001.0,0.09224]
[1741455170679,0.0930482,86001.0,86000.0,0.03846463]
[1741455170991,0.0930547,85995.0,85994.0,0.3608]
[1741455171394,0.0930547,85995.0,85994.0,0.400053]
[1741455171893,0.0866,85996.0,85995.0,0.0930547]
[1741455172194,0.0811,86014.0,86002.0,0.0930471]
[1741455172485,0.0851,86005.0,86002.0,0.0930471]
[1741455173281,0.4538251,86023.0,86002.0,0.0930471]
[1741455173482,0.0851,86013.0,86002.0,0.0930471]
[1741455173683,0.00117443,86003.0,86002.0,0.0940471]
[1741455174888,0.00117443,86003.0,86002.0,0.1787471]
[1741455175091,0.3608,86023.0,86021.0,0.0930265]
[1741455175390,0.3608,86023.0,86022.0,0.1817255]
[1741455176293,0.3608,86023.0,86022.0,0.0887]
[1741455176494,0.0913,86027.0,86026.0,0.0930211]
[1741455176995,0.00017443,86031.0,86024.0,0.0465113]
[1741455177184,0.00017443,86031.0,86030.0,0.0930168]
[1741455177593,0.00017443,86031.0,86030.0,0.13149448]
[1741455177892,0.00017443,86031.0,86030.0,0.12717768]
[1741455178091,0.00017443,86031.0,86030.0,0.22019448]
[1741455178291,0.26999013,86031.0,86030.0,0.12717768]
[1741455178595,0.26999013,86031.0,86030.0,0.30329448]
[1741455179284,0.17697443,86031.0,86017.0,0.0465153]
[1741455179489,0.0930244,86023.0,86022.0,0.0831]
[1741455179693,0.0930267,86021.0,86019.0,0.0930283]
[1741455179886,0.0930267,86021.0,86020.0,0.0831]
[1741455180388,0.0930267,86021.0,86020.0,0.1761276]
[1741455180583,0.0930267,86021.0,86017.0,0.0387571]
[1741455180584,0.0902,86027.0,86017.0,0.0387571]
[1741455180794,0.0902,86027.0,86026.0,0.0930211]
[1741455181497,0.00117443,86031.0,86027.0,0.09302]
[1741455181698,0.3608,86042.0,86041.0,0.0930049]
[1741455182002,0.3608,86042.0,86041.0,0.1852449]
[1741455182194,0.35485249,86042.0,86041.0,0.1852449]
[1741455182386,0.35485249,86042.0,86041.0,0.09224]
[1741455182591,0.35485249,86042.0,86041.0,0.1852449]
[1741455182901,0.00017432,86050.0,86041.0,0.26784]
[1741455183103,0.00017432,86050.0,86049.0,0.0929963]
[1741455183304,0.09317002,86050.0,86048.0,0.0929968]
[1741455183601,0.09317002,86050.0,86049.0,0.1756]
[1741455183992,0.00017432,86050.0,86049.0,0.2685963]
[1741455184189,0.00717432,86050.0,86049.0,0.2685963]
[1741455184794,0.01417432,86050.0,86049.0,0.2685963]
[1741455185291,0.01417432,86050.0,86049.0,0.21064544]
[1741455186194,0.01417432,86050.0,86049.0,0.11764914]
[1741455186394,0.01417432,86050.0,86040.0,0.14058977]
[1741455186587,0.0929978,86048.0,86042.0,0.0895]
[1741455186795,0.0929978,86048.0,86047.0,0.0929984]
[1741455186994,0.01417432,86050.0,86048.0,0.0929967]
[1741455187303,0.01417432,86050.0,86049.0,0.1840963]
[1741455187688,0.00717432,86050.0,86049.0,0.1840963]
[1741455188204,0.005,86050.0,86049.0,0.2684963]
[1741455188394,0.005,86050.0,86049.0,0.21054544]
[1741455189102,0.005,86050.0,86049.0,0.57134544]
[1741455189597,0.00017432,86058.0,86049.0,0.47834914]
[1741455189805,0.00017432,86058.0,86057.0,0.0929876]
[1741455189996,0.00017432,86058.0,86057.0,0.0922]
[1741455190192,0.00017432,86058.0,86057.0,0.1851876]
[1741455191403,0.00117432,86058.0,86057.0,0.16572985]
[1741455192101,0.00117432,86058.0,86057.0,0.52652985]
[1741455192295,0.00117432,86058.0,86057.0,0.60982985]
[1741455192497,0.3608,86068.0,86057.0,0.51684225]
[1741455192804,0.3608,86090.0,86075.0,0.0929682]
[1741455193104,0.04648,86083.0,86075.0,0.0929682]
[1741455193506,0.3608,86090.0,86089.0,0.0929531]
[1741455193990,0.0929541,86088.0,86087.0,0.0929551]
[1741455194193,0.0929541,86088.0,86087.0,0.13148754]
[1741455194393,0.0929541,86088.0,86087.0,0.07353668]
[1741455194603,0.0929541,86088.0,86087.0,0.13148704]
[1741455194805,0.0929541,86088.0,86087.0,0.0929546]
[1741455195301,0.0869,86089.0,86084.0,0.0846]
[1741455195605,0.0929574,86085.0,86084.0,0.03839871]
[1741455195800,0.0869,86087.0,86080.0,0.14058977]
[1741455196003,0.0929603,86083.0,86081.0,0.0929617]
[1741455196208,0.0859,86082.0,86081.0,0.0929617]
[1741455196506,0.178861,86082.0,86080.0,0.03960126]
[1741455196707,0.0859,86082.0,86076.0,0.0464833]
[1741455197004,0.0859,86082.0,86081.0,0.0929617]
[1741455197208,0.0849,86082.0,86081.0,0.0929617]
[1741455197408,0.1693,86082.0,86081.0,0.0929617]
[1741455197605,0.1693,86082.0,86081.0,0.1837617]
[1741455198605,0.5301,86082.0,86080.0,0.03966809]
[1741455198803,0.0929628,86080.0,86077.0,0.0929652]
[1741455199113,0.0929649,86078.0,86077.0,0.13304236]
[1741455199500,0.0929649,86078.0,86077.0,0.04007696]
[1741455199808,0.0929676,86076.0,86073.0,0.0929694]
[1741455200109,0.0929703,86073.0,86072.0,0.09216]
[1741455200307,0.0929736,86070.0,86069.0,0.78232]
[1741455200501,0.1847718,86072.0,86069.0,0.78164]
[1741455200707,0.0849,86071.0,86070.0,0.0929736]
[1741455201102,0.0849,86071.0,86070.0,0.1842736]
[1741455201402,0.0849,86071.0,86070.0,0.13156055]
[1741455201801,0.1767,86071.0,86070.0,0.13156055]
[1741455202212,0.00417432,86078.0,86077.0,0.092966]
[1741455202411,0.1772,86081.0,86077.0,0.092966]
[1741455202712,0.1732,86081.0,86080.0,0.0929628]
[1741455203397,0.1732,86081.0,86078.0,0.0915]
[1741455203603,0.1732,86081.0,86080.0,0.0929628]
[1741455203804,0.1782,86081.0,86080.0,0.0929628]
[1741455204110,0.1782,86081.0,86079.0,0.0929632]
[1741455204301,0.1782,86081.0,86080.0,0.0929628]
[1741455204701,0.1782,86081.0,86078.0,0.0929643]
[1741455204904,0.1782,86081.0,86080.0,0.0929628]
[1741455206506,0.1762,86081.0,86080.0,0.0929628]
[1741455207030,0.1732,86081.0,86080.0,0.0929628]
[1741455207313,0.003,86081.0,86080.0,0.1819628]
[1741455207515,0.007,86081.0,86080.0,0.1819628]
[1741455209820,0.1,86100.0,86092.0,0.0464747]
[1741455210012,0.1,86100.0,86099.0,0.0929423]
[1741455210911,0.1,86100.0,86099.0,0.2735423]
[1741455211111,0.109,86100.0,86099.0,0.2745423]
[1741455212014,0.105,86100.0,86099.0,0.2745423]
[1741455212219,0.109,86100.0,86099.0,0.2755423]
[1741455212511,0.109,86100.0,86099.0,0.31554944]
[1741455212710,0.109,86100.0,86099.0,0.22260714]
[1741455212916,0.109,86100.0,86099.0,0.31554944]
[1741455213112,0.109,86100.0,86099.0,0.22260714]
[1741455213915,0.109,86100.0,86099.0,0.31554944]
[1741455214111,0.109,86100.0,86099.0,0.22260714]
[1741455214423,0.109,86100.0,86099.0,0.31554944]
[1741455214616,0.109,86100.0,86099.0,0.22444944]
[1741455215815,0.109,86100.0,86099.0,0.13494944]
[1741455216321,0.294,86100.0,86099.0,0.13494944]
[1741455217323,0.294,86100.0,86099.0,0.04200714]
[1741455217517,0.3869412,86100.0,86099.0,0.04200714]
[1741455217719,0.3869412,86100.0,86099.0,0.002]
[1741455218018,0.5369412,86100.0,86099.0,0.002]
[1741455218814,0.294,86100.0,86074.0,0.09212]
[1741455219011,0.0929725,86071.0,86070.0,0.00234249]
[1741455219209,0.0464804,86082.0,86075.0,0.092965]
[1741455219420,0.0929643,86079.0,86078.0,0.0929628]
[1741455220015,0.0929703,86073.0,86072.0,0.4537702]
[1741455220219,0.0464842,86075.0,86072.0,0.5467405]
[1741455220419,0.1819,86081.0,86072.0,0.5467405]
[1741455220420,0.1808,86074.0,86072.0,0.4537702]
[1741455220620,0.0929725,86071.0,86070.0,0.13449094]
[1741455220821,0.0929706,86073.0,86072.0,0.0929703]
[1741455221424,0.2655706,86073.0,86072.0,0.0929703]
[1741455221925,0.0929725,86071.0,86070.0,0.07246978]
[1741455222519,0.1726,86073.0,86070.0,0.16544258]
[1741455222814,0.0879,86073.0,86071.0,0.0913]
[1741455223019,0.0847,86072.0,86071.0,0.0913]
[1741455223525,0.1763,86072.0,86071.0,0.0913]
[1741455223722,0.2692714,86072.0,86071.0,0.1842725]
[1741455223926,0.0916,86072.0,86071.0,0.1842725]
[1741455224234,0.0926,86072.0,86071.0,0.1842725]
[1741455224921,0.1855714,86072.0,86071.0,0.21802164]
[1741455225123,0.2764714,86072.0,86071.0,0.21802164]
[1741455225315,0.1835,86072.0,86071.0,0.21802164]
[1741455225518,0.0464749,86092.0,86086.0,0.0929563]
[1741455225817,0.2754512,86091.0,86086.0,0.0929563]
[1741455226217,0.1825,86091.0,86086.0,0.0929563]
[1741455226524,0.0929563,86086.0,86085.0,0.0917]
[1741455226717,0.2763563,86086.0,86085.0,0.0917]
[1741455226917,0.0925,86086.0,86085.0,0.20282605]
[1741455227325,0.0925,86086.0,86085.0,0.32459435]
[1741455227622,0.0925,86086.0,86085.0,0.3406051]
[1741455227925,0.0925,86086.0,86085.0,0.25358594]
[1741455228129,0.0925,86086.0,86085.0,0.33968594]
[1741455228320,0.1812,86086.0,86085.0,0.30550654]
[1741455229127,0.0935,86086.0,86085.0,0.32367421]
[1741455229318,0.0935,86086.0,86085.0,0.30550654]
[1741455229625,0.001,86086.0,86085.0,0.30550654]
[1741455230823,0.001,86086.0,86085.0,0.24755568]
[1741455233524,0.0912,86086.0,86085.0,0.24755568]
[1741455233726,0.001,86086.0,86085.0,0.24755568]
[1741455233923,0.001,86086.0,86085.0,0.1788]
[1741455234829,0.001,86086.0,86085.0,0.2717574]
[1741455236919,0.1785,86086.0,86085.0,0.09212]
[1741455237119,0.1785,86086.0,86085.0,0.2733774]
[1741455237425,0.1,86100.0,86099.0,0.0929423]
[1741455238124,0.1,86100.0,86097.0,0.4537437]
[1741455238318,0.0929433,86098.0,86097.0,0.4537437]
[1741455238733,0.1751,86098.0,86097.0,0.4537437]
[1741455239326,0.2670433,86098.0,86097.0,0.3608]
[1741455239522,0.1741,86098.0,86097.0,0.4537444]
[1741455239931,0.2670433,86098.0,86097.0,0.39579354]
[1741455240338,0.2670433,86098.0,86097.0,0.30284914]
[1741455240837,0.0929509,86091.0,86090.0,0.0006]
[1741455241130,0.091952,86090.0,86089.0,0.00017422]
[1741455241828,0.0929703,86073.0,86072.0,0.27801678]
[1741455242028,0.0929703,86073.0,86072.0,0.13621678]
[1741455242532,0.1759,86073.0,86072.0,0.13621678]
[1741455242833,0.1759,86073.0,86072.0,0.22918818]
[1741455243027,0.1769,86073.0,86072.0,0.17123732]
[1741455243531,0.2698703,86073.0,86072.0,0.07826592]
[1741455243927,0.1769,86073.0,86064.0,0.04666382]
[1741455244235,0.092979,86065.0,86064.0,0.04666382]
[1741455244729,0.092979,86065.0,86064.0,0.04869127]
[1741455244922,0.092979,86065.0,86064.0,0.09315432]
[1741455245123,0.0866,86067.0,86066.0,0.0929779]
[1741455246127,0.0866,86067.0,86066.0,0.1872779]
[1741455246321,0.0866,86067.0,86066.0,0.0929779]
[1741455246533,0.0866,86067.0,86066.0,0.0939779]
[1741455246729,0.1795768,86067.0,86066.0,0.0939779]
[1741455246933,0.1795768,86067.0,86066.0,0.0959779]
[1741455247136,0.0866,86067.0,86066.0,0.0949779]
[1741455247326,0.0866,86067.0,86066.0,0.1892779]
[1741455248035,0.0866,86067.0,86066.0,0.0949779]
[1741455248328,0.0866,86067.0,86066.0,0.002]
[1741455248737,0.1732,86067.0,86066.0,0.0969779]
[1741455249129,0.1732,86067.0,86066.0,0.002]
[1741455249435,0.1732,86067.0,86066.0,0.2775779]
[1741455250027,0.1732,86067.0,86066.0,0.2785779]
[1741455250228,0.0866,86067.0,86066.0,0.2785779]
[1741455250427,0.1,86100.0,86066.0,0.2785779]
[1741455250428,0.0929497,86093.0,86089.0,0.0929522]
[1741455250639,0.1860505,86092.0,86089.0,0.0929522]
[1741455250841,0.0929509,86091.0,86090.0,0.0902]
[1741455251438,0.0929595,86083.0,86082.0,0.3608]
[1741455251739,0.0929595,86083.0,86082.0,0.36097422]
[1741455252235,0.0929595,86083.0,86082.0,0.30302336]
[1741455252432,0.2784595,86083.0,86082.0,0.30302336]
[1741455252739,0.1855,86083.0,86082.0,0.39598396]
[1741455252949,0.2784595,86083.0,86082.0,0.39598396]
[1741455253124,0.2804595,86083.0,86082.0,0.00017422]
[1741455253731,0.2774595,86083.0,86082.0,0.00017422]
[1741455254631,0.2764595,86083.0,86082.0,0.00017422]
[1741455254840,0.2744595,86083.0,86082.0,0.00017422]
[1741455255235,0.0464812,86081.0,86076.0,0.0929666]
[1741455255543,0.1394578,86074.0,86073.0,0.1394547]
[1741455256246,0.0464853,86074.0,86073.0,0.1394547]
[1741455256542,0.0929657,86078.0,86077.0,0.0929639]
[1741455258234,0.0929657,86078.0,86076.0,0.0918]
[1741455258235,0.0868,86078.0,86076.0,0.0918]
[1741455258436,0.186466,86077.0,86076.0,0.0918]
[1741455259447,0.0935,86077.0,86076.0,0.0918]
[1741455259739,0.0945,86077.0,86076.0,0.4526]
[1741455259934,0.1847,86077.0,86067.0,0.23270977]
[1741455260133,0.0929747,86069.0,86068.0,0.1781]
[1741455260329,0.0929747,86069.0,86068.0,0.0866]
[1741455260935,0.2738747,86069.0,86068.0,0.0866]
[1741455261438,0.2738747,86069.0,86068.0,0.02864914]
[1741455262147,0.2738747,86069.0,86068.0,0.12114914]
[1741455262337,0.1809,86069.0,86068.0,0.21612484]
[1741455262641,0.2738747,86069.0,86068.0,0.48394914]
[1741455263447,0.2738747,86069.0,86068.0,0.48694914]
[1741455263848,0.1809,86069.0,86068.0,0.57992484]
[1741455264240,0.1809,86069.0,86068.0,0.52197398]
[1741455265450,0.2738747,86069.0,86068.0,0.3658]
[1741455265949,0.2738747,86069.0,86068.0,0.005]
[1741455266143,0.3309,86069.0,86065.0,0.00017422]
[1741455266355,0.4537779,86066.0,86065.0,0.00017422]
[1741455267047,0.0929909,86054.0,86051.0,0.00174296]
[1741455267245,0.1767,86053.0,86040.0,0.7250321]
[1741455267442,0.0930049,86041.0,86040.0,0.7250321]
[1741455268344,0.0930092,86037.0,86036.0,0.34950693]
[1741455268653,0.2420092,86037.0,86036.0,0.34950693]
[1741455268952,0.0920092,86037.0,86036.0,0.44251723]
[1741455269257,0.6028092,86037.0,86036.0,0.34950693]
[1741455270354,0.0930309,86017.0,86016.0,0.03759865]
[1741455270551,0.0930352,86013.0,86008.0,0.782]
[1741455270752,0.0930395,86009.0,86008.0,0.782]
[1741455271057,0.0930395,86009.0,86008.0,0.8744406]
[1741455271553,0.0930395,86009.0,86008.0,0.7814]
[1741455271961,0.0930395,86009.0,86000.0,0.00017432]
[1741455271962,0.184,86012.0,86003.0,0.04818345]
[1741455272159,0.0914,86008.0,86007.0,0.0930417]
[1741455272458,0.0914,86008.0,86007.0,0.2675417]
[1741455272659,0.1844406,86008.0,86007.0,0.2675417]
[1741455272860,0.1844406,86008.0,86007.0,0.1745]
[1741455272861,0.2705406,86008.0,86007.0,0.1745]
[1741455273456,0.2705406,86008.0,86007.0,0.0857]
[1741455273656,0.2705406,86008.0,86007.0,0.1787417]
[1741455274052,0.2705406,86008.0,86007.0,0.0857]
[1741455275360,0.2705406,86008.0,86007.0,0.1787417]
[1741455275851,0.0930449,86004.0,86003.0,0.04897512]
[1741455276047,0.1785,86008.0,86002.0,0.0941]
[1741455276353,0.0928,86003.0,86002.0,0.12919624]
[1741455276770,0.1798417,86007.0,86006.0,0.0930428]
[1741455276953,0.001,86008.0,86007.0,0.0930417]
[1741455277460,0.0868,86012.0,86011.0,0.0930374]
[1741455277760,0.00017432,86017.0,86011.0,0.3608]
[1741455277963,0.0465159,86016.0,86013.0,0.0930343]
[1741455278259,0.1357159,86016.0,86013.0,0.0930343]
[1741455278561,0.0930363,86012.0,86011.0,0.3608]
[1741455278766,0.0930363,86012.0,86011.0,0.3618]
[1741455279654,0.0930363,86012.0,86011.0,0.001]
[1741455279856,0.0930406,86008.0,86007.0,0.001]
[1741455280455,0.0920406,86008.0,86007.0,0.001]
[1741455281058,0.0551153,86011.0,86007.0,0.001]
[1741455281261,0.0930406,86008.0,86007.0,0.001]
[1741455281561,0.0930363,86012.0,86002.0,0.3608]
[1741455281562,0.093046,86003.0,86002.0,0.3608]
[1741455281956,0.001,86012.0,86002.0,0.3608]
[1741455282158,0.0465206,86008.0,86005.0,0.0465219]
[1741455282362,0.001,86012.0,86005.0,0.0465219]
[1741455282564,0.001,86008.0,86005.0,0.03509244]
[1741455282864,0.001,86008.0,86007.0,0.0930417]
[1741455283066,0.001,86008.0,86007.0,0.1875417]
[1741455283955,0.001,86012.0,86007.0,0.0945]
[1741455284156,2.3323471,86110.0,86016.0,0.0930319]
[1741455284157,0.0465025,86041.0,86016.0,0.0930319]
[1741455284357,0.0906,86034.0,86033.0,0.0930127]
[1741455284666,0.0906,86034.0,86029.0,0.3608]
[1741455284871,0.0906,86034.0,86030.0,0.178916]
[1741455285070,0.0906,86034.0,86030.0,0.1789159]
[1741455285259,0.0906,86034.0,86030.0,0.0859]
[1741455285455,0.0906,86034.0,86032.0,0.03506314]
[1741455285664,0.0906,86034.0,86033.0,0.1789136]
[1741455286158,0.0906,86034.0,86033.0,0.0859]
[1741455286764,0.00017432,86041.0,86034.0,0.0465062]
[1741455286961,0.00017432,86041.0,86040.0,0.093006]
[1741455287159,0.08291494,86044.0,86042.0,0.0930032]
[1741455287363,0.08291494,86044.0,86043.0,0.0859]
[1741455287565,0.08291494,86044.0,86043.0,0.1789028]
[1741455287969,0.088,86053.0,86043.0,0.53886]
[1741455288168,0.180992,86053.0,86045.0,0.093]
[1741455288468,0.005,86044.0,86043.0,0.73704985]
[1741455288656,0.008,86044.0,86043.0,0.63191202]
[1741455290371,0.0874,86056.0,86055.0,0.0929898]
[1741455290559,0.00017432,86057.0,86056.0,0.0929887]
[1741455291667,0.00017432,86057.0,86055.0,0.4547898]
[1741455291866,0.00017432,86057.0,86056.0,0.1359887]
[1741455292267,0.00717432,86057.0,86056.0,0.1369887]
[1741455293067,0.00717432,86057.0,86056.0,0.001]
[1741455293473,0.01017432,86057.0,86056.0,0.0949887]
[1741455293969,0.00717432,86057.0,86056.0,0.0959887]
[1741455294665,0.00717432,86057.0,86055.0,0.453789]
[1741455294870,0.1822,86056.0,86055.0,0.453789]
[1741455295368,0.1812,86056.0,86055.0,0.453789]
[1741455295563,0.1762,86056.0,86055.0,0.453789]
[1741455296572,0.1762,86056.0,86055.0,0.456789]
[1741455297770,0.1762,86056.0,86055.0,0.39883814]
[1741455299072,0.1762,86056.0,86055.0,0.30484914]
[1741455299370,0.1762,86056.0,86055.0,0.39783894]
[1741455300578,0.0849,86056.0,86055.0,0.39783894]
[1741455300771,0.0849,86056.0,86055.0,0.38888808]
[1741455302075,0.02842634,86068.0,86067.0,0.0929768]